[Event "22nd ETCC Women 2019"]
[Site "Batumi"]
[Date "2019.10.26"]
[Round "3.36"]
[White "Duran, Esma Doga"]
[Black "Golsta, Madara"]
[Result "1/2-1/2"]
[ECO "D37"]
[WhiteElo "1878"]
[BlackElo "1987"]
[Annotator "NA"]
[PlyCount "119"]
[EventDate "2019.10.24"]
[EventType "team-tourn"]
[EventCountry "GEO"]
[SourceTitle "playchess.com"]
[Source "ChessBase"]
[SourceQuality "1"]
[WhiteTeam "Turkey"]
[BlackTeam "Latvia"]
[WhiteTeamCountry "TUR"]
[BlackTeamCountry "LAT"]
[TimeControl "40/5400+30:1800+30"]

1. d4 {[%emt 0:00:00]} Nf6 {[%emt 0:00:00]} 2. c4 {[%emt 0:00:02]} e6 {[%emt 0:00:00]} 3. Nf3 {[%emt 0:00:28]} d5 {[%emt 0:00:58]} 4. Nc3 {[%emt 0:02:18]} Nbd7 {[%emt 0:01:42]} 5. Bf4 {[%emt 0:01:55]} dxc4 {[%emt 0:03:29]} 6. e4 {[%emt 0:11:21]} Bb4 {[%emt 0:11:09]} 7. Bg5 {[%emt 0:13:46]} h6 {[%emt 0:06:22]} 8. Bxf6 {[%emt 0:00:19]} Qxf6 {[%emt 0:01:08]} 9. Bxc4 {[%emt 0:01:34]} O-O {[%emt 0:08:45]} 10. O-O {[%emt 0:02:58]} b6 {[%emt 0:08:31]} 11. Nb5 {[%emt 0:26:03]} Qd8 {[%emt 0:05:43]} 12. d5 {[%emt 0:05:52]} e5 {[%emt 0:08:10]} 13. d6 {[%emt 0:04:08]} Bxd6 {[%emt 0:04:36]} 14. Nxd6 {[%emt 0:06:10]} cxd6 {[%emt 0:00:11]} 15. Qxd6 {[%emt 0:01:20]} Qf6 {[%emt 0:12:40]} 16. Qxf6 {[%emt 0:02:13]} gxf6 {[%emt 0:00:14]} 17. Bd5 {[%emt 0:01:45]} Rb8 {[%emt 0:01:46]} 18. b4 {[%emt 0:00:16]} b5 {[%emt 0:06:18]} 19. Bc6 {[%emt 0:11:08]} Nb6 {[%emt 0:06:33]} 20. Rfd1 {[%emt 0:02:02]} Nc4 {[%emt 0:01:24]} 21. Rac1 {[%emt 0:01:26]} Be6 {[%emt 0:02:41]} 22. Bd5 {[%emt 0:01:22]} Rfd8 {[%emt 0:01:25]} 23. Nh4 {[%emt 0:02:01]} Rb6 {[%emt 0:05:27]} 24. Bxe6 {[%emt 0:00:55]} Rxd1+ {[%emt 0:00:06]} 25. Rxd1 {[%emt 0:00:05]} fxe6 {[%emt 0:00:05]} 26. Rd8+ {[%emt 0:00:31]} Kg7 {[%emt 0:01:39]} 27. Rd7+ {[%emt 0:00:01]} Kg8 {[%emt 0:00:28]} 28. Rxa7 {[%emt 0:00:13]} Rd6 {[%emt 0:00:16]} 29. g3 {[%emt 0:01:10]} Rd1+ {[%emt 0:01:22]} 30. Kg2 {[%emt 0:00:02]} Rb1 {[%emt 0:00:07]} 31. Ra6 {[%emt 0:01:26]} Kf7 {[%emt 0:00:22]} 32. Ra7+ {[%emt 0:00:01]} Kg8 {[%emt 0:00:09]} 33. Ra8+ {[%emt 0:00:50]} Kg7 {[%emt 0:00:17]} 34. Ra7+ {[%emt 0:00:01]} Kg8 {[%emt 0:00:35]} 35. Re7 {[%emt 0:01:00]} Rxb4 {[%emt 0:00:18]} 36. Rxe6 {[%emt 0:00:02]} Kf7 {[%emt 0:00:10]} 37. Ra6 {[%emt 0:00:14]} Nd2 {[%emt 0:00:42]} 38. Nf5 {[%emt 0:00:28]} Nxe4 {[%emt 0:00:33]} 39. Nxh6+ {[%emt 0:00:25]} Kg7 {[%emt 0:00:45]} 40. Nf5+ {[%emt 0:00:00]} Kg6 {[%emt 0:00:00]} 41. Ne7+ {[%emt 0:03:36]} Kf7 {[%emt 0:05:13]} 42. Nd5 {[%emt 0:07:53]} Rb2 {[%emt 0:00:47]} 43. Kf3 {[%emt 0:03:02]} f5 {[%emt 0:03:45]} 44. Ke3 {[%emt 0:01:12]} Nxf2 {[%emt 0:09:14]} 45. Rf6+ {[%emt 0:01:23]} Kg7 {[%emt 0:00:34]} 46. Rxf5 {[%emt 0:01:20]} Ng4+ {[%emt 0:00:59]} 47. Ke4 {[%emt 0:00:46]} Nxh2 {[%emt 0:00:35]} 48. Rg5+ {[%emt 0:01:06]} Kf7 {[%emt 0:00:49]} 49. Rf5+ {[%emt 0:00:31]} Kg7 {[%emt 0:00:12]} 50. Nc7 {[%emt 0:05:36]} b4 {[%emt 0:02:32]} 51. Ne6+ {[%emt 0:09:06]} Kg6 {[%emt 0:01:12]} 52. Rxe5 {[%emt 0:00:51]} Re2+ {[%emt 0:05:09]} 53. Kd5 {[%emt 0:01:16]} Rxa2 {[%emt 0:00:42]} 54. Nf4+ {[%emt 0:00:02]} Kf6 {[%emt 0:01:46]} 55. Re6+ {[%emt 0:00:08]} Kf7 {[%emt 0:00:10]} 56. Kc4 {[%emt 0:00:13]} Rf2 {[%emt 0:02:16]} 57. Re2 {[%emt 0:00:37]} Rxe2 {[%emt 0:00:36]} 58. Nxe2 {[%emt 0:00:01]} Nf1 {[%emt 0:00:08]} 59. Kxb4 {[%emt 0:00:07]} Nxg3 {[%emt 0:00:05]} 60. Nxg3 {[%emt 0:00:05]} 1/2-1/2

[Event "22nd ETCC Women 2019"]
[Site "Batumi"]
[Date "2019.10.27"]
[Round "4.1"]
[White "Dzagnidze, Nana"]
[Black "Goryachkina, Aleksandra"]
[Result "1/2-1/2"]
[ECO "D10"]
[WhiteElo "2502"]
[BlackElo "2575"]
[Annotator "ChessBase"]
[PlyCount "31"]
[EventDate "2019.10.24"]
[EventType "team-tourn"]
[EventCountry "GEO"]
[SourceTitle "playchess.com"]
[Source "ChessBase"]
[SourceQuality "1"]
[WhiteTeam "Georgia"]
[BlackTeam "Russia"]
[WhiteTeamCountry "GEO"]
[BlackTeamCountry "RUS"]
[TimeControl "40/5400+30:1800+30"]

1. c4 {[%emt 0:00:00]} c6 {[%emt 0:00:00]} 2. d4 {[%emt 0:00:04]} d5 {[%emt 0:00:00]} 3. cxd5 {[%emt 0:00:10]} cxd5 {[%emt 0:00:00]} 4. Bg5 {[%emt 0:00:21]} h6 {[%emt 0:04:08]} 5. Bh4 {[%emt 0:00:23]} Qb6 {[%emt 0:00:26]} 6. Nc3 {[%emt 0:00:44]} Qxb2 {[%emt 0:03:30]} 7. Nxd5 {[%emt 0:03:17]} e6 {[%emt 0:01:05]} 8. Rb1 {[%emt 0:13:55]} Qa3 {[%emt 0:01:04]} 9. Nc7+ {[%emt 0:00:16]} Kd7 {[%emt 0:00:09]} 10. Nxa8 {[%emt 0:00:15]} Bb4+ {[%emt 0:00:09]} 11. Rxb4 {[%emt 0:00:05]} Qxb4+ {[%emt 0:00:26]} 12. Qd2 {[%emt 0:00:04]} Qb1+ {[%emt 0:00:06]} 13. Qd1 {[%emt 0:00:03]} Qb4+ {[%emt 0:00:05]} 14. Qd2 {[%emt 0:00:02]} Qb1+ {[%emt 0:00:06]} 15. Qd1 {[%emt 0:00:04]} Qb4+ {[%emt 0:00:14]} 16. Qd2 {[%emt 0:00:04]} 1/2-1/2

[Event "22nd ETCC Women 2019"]
[Site "Batumi"]
[Date "2019.10.27"]
[Round "4.1"]
[White "Exler, Veronika"]
[Black "Peng, Zhaoqin"]
[Result "1/2-1/2"]
[ECO "B15"]
[WhiteElo "2222"]
[BlackElo "2364"]
[Annotator "NA"]
[PlyCount "64"]
[EventDate "2019.10.24"]
[EventType "team-tourn"]
[EventCountry "GEO"]
[SourceTitle "playchess.com"]
[Source "ChessBase"]
[SourceQuality "1"]
[WhiteTeam "Austria"]
[BlackTeam "Netherlands"]
[WhiteTeamCountry "AUT"]
[BlackTeamCountry "NED"]
[TimeControl "40/5400+30:1800+30"]

1. e4 {[%emt 0:00:00]} c6 {[%emt 0:00:00]} 2. d4 {[%emt 0:00:00]} d5 {[%emt 0:00:00]} 3. Nc3 {[%emt 0:00:00]} dxe4 {[%emt 0:00:01]} 4. Nxe4 {[%emt 0:00:00]} Nf6 {[%emt 0:00:53]} 5. Nxf6+ {[%emt 0:00:00]} exf6 {[%emt 0:00:04]} 6. c3 {[%emt 0:00:17]} Bd6 {[%emt 0:00:37]} 7. Bd3 {[%emt 0:00:07]} O-O {[%emt 0:00:46]} 8. Qc2 {[%emt 0:00:05]} h5 {[%emt 0:02:12]} 9. Ne2 {[%emt 0:00:06]} Re8 {[%emt 0:01:00]} 10. O-O {[%emt 0:00:17]} Qc7 {[%emt 0:00:21]} 11. h3 {[%emt 0:02:41]} h4 {[%emt 0:06:17]} 12. c4 {[%emt 0:13:19]} Na6 {[%emt 0:24:32]} 13. a3 {[%emt 0:04:10]} c5 {[%emt 0:02:12]} 14. d5 {[%emt 0:00:59]} Bd7 {[%emt 0:00:52]} 15. f4 {[%emt 0:20:18]} f5 {[%emt 0:07:39]} 16. Kh1 {[%emt 0:14:13]} Qd8 {[%emt 0:25:16]} 17. Ng1 {[%emt 0:01:00]} Qf6 {[%emt 0:03:11]} 18. Nf3 {[%emt 0:08:00]} b5 {[%emt 0:00:31]} 19. Ne5 {[%emt 0:10:16]} Rad8 {[%emt 0:07:39]} 20. b3 {[%emt 0:04:39]} bxc4 {[%emt 0:00:49]} 21. bxc4 {[%emt 0:01:49]} Bxe5 {[%emt 0:02:13]} 22. fxe5 {[%emt 0:00:06]} Qxe5 {[%emt 0:00:06]} 23. Bg5 {[%emt 0:07:48]} Rc8 {[%emt 0:03:14]} 24. Bxh4 {[%emt 0:00:05]} f4 {[%emt 0:01:19]} 25. Qd2 {[%emt 0:08:25]} g5 {[%emt 0:03:08]} 26. Rae1 {[%emt 0:01:32]} Qf6 {[%emt 0:01:46]} 27. Bf2 {[%emt 0:01:15]} Rb8 {[%emt 0:03:19]} 28. Rxe8+ {[%emt 0:00:15]} Rxe8 {[%emt 0:00:13]} 29. Re1 {[%emt 0:00:56]} Rb8 {[%emt 0:01:01]} 30. Rb1 {[%emt 0:00:23]} Re8 {[%emt 0:01:36]} 31. Re1 {[%emt 0:00:02]} Rb8 {[%emt 0:00:34]} 32. Rb1 {[%emt 0:00:05]} Re8 {[%emt 0:01:07]} 1/2-1/2

[Event "22nd ETCC Women 2019"]
[Site "Batumi"]
[Date "2019.10.27"]
[Round "4.2"]
[White "Haast, Anne"]
[Black "Trippold, Denise"]
[Result "1-0"]
[ECO "B48"]
[WhiteElo "2288"]
[BlackElo "2180"]
[Annotator "NA"]
[PlyCount "169"]
[EventDate "2019.10.24"]
[EventType "team-tourn"]
[EventCountry "GEO"]
[SourceTitle "playchess.com"]
[Source "ChessBase"]
[SourceQuality "1"]
[WhiteTeam "Netherlands"]
[BlackTeam "Austria"]
[WhiteTeamCountry "NED"]
[BlackTeamCountry "AUT"]
[TimeControl "40/5400+30:1800+30"]

1. e4 {[%emt 0:00:00]} c5 {[%emt 0:00:00]} 2. Nf3 {[%emt 0:00:00]} e6 {[%emt 0:00:00]} 3. d4 {[%emt 0:00:00]} cxd4 {[%emt 0:00:00]} 4. Nxd4 {[%emt 0:00:04]} Nc6 {[%emt 0:00:00]} 5. Nc3 {[%emt 0:00:26]} Qc7 {[%emt 0:00:14]} 6. Be3 {[%emt 0:00:49]} a6 {[%emt 0:00:22]} 7. Qf3 {[%emt 0:00:48]} Ne5 {[%emt 0:00:37]} 8. Qg3 {[%emt 0:02:46]} h5 {[%emt 0:01:20]} 9. f4 {[%emt 0:08:22]} h4 {[%emt 0:01:31]} 10. Qh3 {[%emt 0:04:07]} Nc4 {[%emt 0:00:51]} 11. Bxc4 {[%emt 0:02:53]} Qxc4 {[%emt 0:00:07]} 12. O-O-O {[%emt 0:15:27]} b5 {[%emt 0:00:48]} 13. Kb1 {[%emt 0:06:23]} Bb7 {[%emt 0:05:57]} 14. Bf2 {[%emt 0:26:53]} Rc8 {[%emt 0:11:02]} 15. Rhe1 {[%emt 0:03:12]} Nf6 {[%emt 0:10:50]} 16. e5 {[%emt 0:03:42]} Nd5 {[%emt 0:14:52]} 17. Nxd5 {[%emt 0:00:30]} Bxd5 {[%emt 0:00:11]} 18. b3 {[%emt 0:00:14]} Qc7 {[%emt 0:05:05]} 19. Re2 {[%emt 0:00:24]} Qb7 {[%emt 0:03:41]} 20. Be1 {[%emt 0:02:16]} b4 {[%emt 0:03:46]} 21. Qd3 {[%emt 0:08:56]} Bc5 {[%emt 0:20:45]} 22. Nf5 {[%emt 0:00:53]} Kf8 {[%emt 0:00:32]} 23. Bf2 {[%emt 0:02:41]} Be7 {[%emt 0:02:38]} 24. Nxe7 {[%emt 0:01:15]} Kxe7 {[%emt 0:00:02]} 25. f5 {[%emt 0:00:09]} Ke8 {[%emt 0:05:23]} 26. Qd4 {[%emt 0:02:03]} a5 {[%emt 0:02:48]} 27. Qg4 {[%emt 0:01:32]} Kf8 {[%emt 0:01:32]} 28. Bxh4 {[%emt 0:01:26]} exf5 {[%emt 0:02:19]} 29. Qd4 {[%emt 0:01:06]} Be6 {[%emt 0:02:38]} 30. h3 {[%emt 0:01:01]} Qc6 {[%emt 0:00:45]} 31. Be1 {[%emt 0:00:34]} Qc5 {[%emt 0:00:38]} 32. Qf4 {[%emt 0:00:47]} Kg8 {[%emt 0:01:11]} 33. Bf2 {[%emt 0:01:41]} Qc6 {[%emt 0:00:15]} 34. Bh4 {[%emt 0:00:50]} Qb5 {[%emt 0:00:54]} 35. Rde1 {[%emt 0:00:45]} Qc5 {[%emt 0:01:53]} 36. Bf2 {[%emt 0:00:24]} Qc6 {[%emt 0:00:48]} 37. Bd4 {[%emt 0:00:29]} Rh6 {[%emt 0:00:26]} 38. Qf2 {[%emt 0:01:16]} Qd5 {[%emt 0:00:29]} 39. Rd2 {[%emt 0:00:21]} Qc6 {[%emt 0:00:36]} 40. Be3 {[%emt 0:00:00]} Rh7 {[%emt 0:00:00]} 41. Rd4 {[%emt 0:12:53]} Qc3 {[%emt 0:06:37]} 42. Bc1 {[%emt 0:00:51]} Qc5 {[%emt 0:02:19]} 43. Qd2 {[%emt 0:01:48]} Rc6 {[%emt 0:10:46]} 44. a3 {[%emt 0:01:48]} bxa3 {[%emt 0:00:38]} 45. Ra4 {[%emt 0:00:17]} Ra6 {[%emt 0:08:48]} 46. Bxa3 {[%emt 0:00:22]} Qb5 {[%emt 0:01:19]} 47. Kb2 {[%emt 0:00:38]} Rh6 {[%emt 0:00:44]} 48. Re3 {[%emt 0:02:15]} Rg6 {[%emt 0:01:24]} 49. Bd6 {[%emt 0:02:59]} f4 {[%emt 0:01:41]} 50. Rxf4 {[%emt 0:04:31]} a4 {[%emt 0:00:01]} 51. Rb4 {[%emt 0:00:16]} Qc6 {[%emt 0:01:43]} 52. Rc3 {[%emt 0:01:51]} Qd5 {[%emt 0:01:23]} 53. Rc8+ Kh7 54. Qxd5 {[%emt 0:06:18]} Bxd5 {[%emt 0:00:02]} 55. g4 {[%emt 0:00:16]} axb3 {[%emt 0:00:20]} 56. cxb3 {[%emt 0:00:19]} Rh6 {[%emt 0:00:25]} 57. Rbb8 {[%emt 0:00:24]} Kg6 {[%emt 0:00:14]} 58. Rh8 {[%emt 0:00:38]} Rxh8 {[%emt 0:00:56]} 59. Rxh8 {[%emt 0:00:01]} Kg5 {[%emt 0:00:15]} 60. Rh5+ {[%emt 0:00:40]} Kg6 {[%emt 0:01:59]} 61. Bc5 {[%emt 0:01:36]} Be6 {[%emt 0:00:31]} 62. Be3 {[%emt 0:00:35]} f6 {[%emt 0:00:35]} 63. exf6 {[%emt 0:00:18]} Kxf6 {[%emt 0:00:01]} 64. Rh8 {[%emt 0:00:45]} Rc6 {[%emt 0:00:58]} 65. Bd4+ {[%emt 0:00:30]} Kg6 {[%emt 0:00:11]} 66. b4 {[%emt 0:00:59]} Rc4 {[%emt 0:00:51]} 67. Bc3 {[%emt 0:00:04]} d5 {[%emt 0:00:18]} 68. Rd8 {[%emt 0:00:14]} Re4 {[%emt 0:00:39]} 69. b5 {[%emt 0:00:18]} Re2+ {[%emt 0:00:01]} 70. Ka3 {[%emt 0:00:30]} Re3 {[%emt 0:00:20]} 71. Kb4 {[%emt 0:00:05]} Re4+ {[%emt 0:01:13]} 72. Ka5 {[%emt 0:00:08]} Rc4 {[%emt 0:00:05]} 73. Be5 {[%emt 0:00:38]} Re4 {[%emt 0:00:44]} 74. b6 {[%emt 0:01:09]} Rxe5 {[%emt 0:00:34]} 75. b7 {[%emt 0:00:07]} d4+ {[%emt 0:00:00]} 76. Kb6 {[%emt 0:01:12]} Re1 {[%emt 0:00:48]} 77. Rxd4 {[%emt 0:01:35]} Rb1+ {[%emt 0:00:12]} 78. Kc7 {[%emt 0:00:04]} Kg5 {[%emt 0:00:31]} 79. Rd6 {[%emt 0:00:20]} Rxb7+ {[%emt 0:00:33]} 80. Kxb7 {[%emt 0:00:01]} Bc4 {[%emt 0:00:10]} 81. Rd8 {[%emt 0:00:45]} Bf1 {[%emt 0:00:52]} 82. Rh8 {[%emt 0:00:04]} Kf4 {[%emt 0:01:00]} 83. Rf8+ {[%emt 0:00:06]} Kg3 {[%emt 0:00:09]} 84. Rxf1 {[%emt 0:00:04]} Kxh3 {[%emt 0:00:04]} 85. g5 {[%emt 0:00:21]} 1-0

[Event "22nd ETCC Women 2019"]
[Site "Batumi"]
[Date "2019.10.27"]
[Round "4.3"]
[White "Khotenashvili, Bela"]
[Black "Girya, Olga"]
[Result "1/2-1/2"]
[ECO "D03"]
[WhiteElo "2446"]
[BlackElo "2476"]
[Annotator "ChessBase"]
[PlyCount "114"]
[EventDate "2019.10.24"]
[EventType "team-tourn"]
[EventCountry "GEO"]
[SourceTitle "playchess.com"]
[Source "ChessBase"]
[SourceQuality "1"]
[WhiteTeam "Georgia"]
[BlackTeam "Russia"]
[WhiteTeamCountry "GEO"]
[BlackTeamCountry "RUS"]
[TimeControl "40/5400+30:1800+30"]

1. d4 {[%emt 0:00:00]} Nf6 {[%emt 0:00:00]} 2. Nf3 {[%emt 0:01:07]} d5 {[%emt 0:00:00]} 3. Bg5 {[%emt 0:00:19]} Ne4 {[%emt 0:01:38]} 4. Bh4 {[%emt 0:00:07]} c5 {[%emt 0:00:16]} 5. dxc5 {[%emt 0:00:17]} Nc6 {[%emt 0:00:50]} 6. Nbd2 {[%emt 0:00:43]} Nxc5 {[%emt 0:02:53]} 7. c3 {[%emt 0:01:36]} g6 {[%emt 0:01:59]} 8. e3 {[%emt 0:03:40]} Bg7 {[%emt 0:01:54]} 9. Be2 {[%emt 0:00:08]} O-O {[%emt 0:00:31]} 10. O-O {[%emt 0:00:24]} h6 {[%emt 0:08:13]} 11. Nd4 {[%emt 0:15:55]} g5 {[%emt 0:10:29]} 12. b4 {[%emt 0:07:21]} Ne6 {[%emt 0:12:03]} 13. Bg3 {[%emt 0:01:45]} f5 {[%emt 0:09:42]} 14. f4 {[%emt 0:12:27]} gxf4 {[%emt 0:06:21]} 15. Nxe6 {[%emt 0:00:09]} Bxe6 {[%emt 0:00:04]} 16. Bxf4 {[%emt 0:00:05]} Bf7 {[%emt 0:02:18]} 17. b5 {[%emt 0:01:02]} Ne5 {[%emt 0:04:51]} 18. Bxe5 {[%emt 0:06:19]} Bxe5 {[%emt 0:00:04]} 19. Rxf5 {[%emt 0:00:13]} Bxc3 {[%emt 0:02:09]} 20. Rc1 {[%emt 0:02:21]} Bg7 {[%emt 0:02:42]} 21. Nb3 {[%emt 0:12:28]} Rc8 {[%emt 0:03:31]} 22. Rxc8 {[%emt 0:07:42]} Qxc8 {[%emt 0:00:02]} 23. Rf3 {[%emt 0:00:19]} e5 {[%emt 0:03:48]} 24. Rg3 {[%emt 0:02:24]} Kh8 {[%emt 0:01:16]} 25. Bd3 {[%emt 0:05:07]} Be6 {[%emt 0:04:40]} 26. Be2 {[%emt 0:16:49]} b6 {[%emt 0:01:44]} 27. h3 {[%emt 0:02:05]} Qc7 {[%emt 0:03:32]} 28. Rf3 {[%emt 0:00:27]} Qc3 {[%emt 0:02:24]} 29. Rxf8+ {[%emt 0:00:35]} Bxf8 {[%emt 0:00:01]} 30. Qc1 {[%emt 0:00:29]} Qxc1+ {[%emt 0:00:41]} 31. Nxc1 {[%emt 0:00:01]} Bc5 {[%emt 0:01:29]} 32. Kf2 {[%emt 0:00:07]} d4 {[%emt 0:01:25]} 33. exd4 {[%emt 0:00:29]} Bxd4+ {[%emt 0:00:04]} 34. Kg3 {[%emt 0:01:21]} Kg7 {[%emt 0:00:29]} 35. Bd3 {[%emt 0:00:34]} Bd5 {[%emt 0:00:26]} 36. Bc2 {[%emt 0:00:31]} Bc4 {[%emt 0:04:52]} 37. a4 {[%emt 0:00:19]} Kf6 {[%emt 0:00:50]} 38. Bb3 {[%emt 0:00:24]} Bf1 39. Kf3 {[%emt 0:00:27]} e4+ {[%emt 0:02:39]} 40. Kxe4 {[%emt 0:00:00]} Bb2 {[%emt 0:00:00]} 41. Nd3 {[%emt 0:01:00]} Bxg2+ {[%emt 0:02:24]} 42. Kf4 {[%emt 0:02:10]} Bc3 {[%emt 0:03:05]} 43. Kg4 {[%emt 0:07:05]} Bd2 {[%emt 0:02:50]} 44. h4 {[%emt 0:08:10]} Bf1 {[%emt 0:02:05]} 45. Nf4 {[%emt 0:03:14]} Ke5 {[%emt 0:00:33]} 46. Ng6+ {[%emt 0:00:11]} Kd6 {[%emt 0:04:07]} 47. Nf4 {[%emt 0:01:33]} a6 {[%emt 0:02:22]} 48. bxa6 {[%emt 0:00:22]} Bxa6 {[%emt 0:00:04]} 49. Kf5 {[%emt 0:02:13]} Bc8+ {[%emt 0:02:59]} 50. Be6 {[%emt 0:03:36]} Bb7 {[%emt 0:00:21]} 51. Bb3 {[%emt 0:00:20]} Kc5 {[%emt 0:02:26]} 52. Bd1 {[%emt 0:01:48]} Kc4 {[%emt 0:03:58]} 53. h5 {[%emt 0:01:48]} Bc6 {[%emt 0:00:53]} 54. Ng6 {[%emt 0:01:48]} Kb4 {[%emt 0:05:58]} 55. Ne5 {[%emt 0:00:52]} Be8 {[%emt 0:01:09]} 56. Ke6 {[%emt 0:00:32]} Bc3 {[%emt 0:03:56]} 57. Nd7 {[%emt 0:00:15]} Bxd7+ {[%emt 0:00:25]} 1/2-1/2

[Event "22nd ETCC Women 2019"]
[Site "Batumi"]
[Date "2019.10.27"]
[Round "4.3"]
[White "Novkovic, Julia"]
[Black "Lanchava, Tea"]
[Result "1-0"]
[ECO "B08"]
[WhiteElo "2146"]
[BlackElo "2236"]
[Annotator "NA"]
[PlyCount "69"]
[EventDate "2019.10.24"]
[EventType "team-tourn"]
[EventCountry "GEO"]
[SourceTitle "playchess.com"]
[Source "ChessBase"]
[SourceQuality "1"]
[WhiteTeam "Austria"]
[BlackTeam "Netherlands"]
[WhiteTeamCountry "AUT"]
[BlackTeamCountry "NED"]
[TimeControl "40/5400+30:1800+30"]

1. e4 {[%emt 0:00:00]} g6 {[%emt 0:00:00]} 2. d4 {[%emt 0:00:00]} Bg7 {[%emt 0:00:00]} 3. h3 {[%emt 0:00:00]} d6 {[%emt 0:00:51]} 4. Nf3 {[%emt 0:01:25]} Nf6 {[%emt 0:03:22]} 5. Nc3 {[%emt 0:03:38]} O-O {[%emt 0:00:25]} 6. Bd3 {[%emt 0:02:24]} Nbd7 {[%emt 0:08:45]} 7. e5 {[%emt 0:08:43]} Ne8 {[%emt 0:00:31]} 8. Qe2 {[%emt 0:00:22]} dxe5 {[%emt 0:05:32]} 9. dxe5 {[%emt 0:04:00]} Nc5 {[%emt 0:02:42]} 10. Bc4 {[%emt 0:00:09]} c6 {[%emt 0:02:48]} 11. O-O {[%emt 0:05:00]} b5 {[%emt 0:20:12]} 12. Be3 {[%emt 0:02:35]} Nb7 {[%emt 0:03:22]} 13. Bb3 {[%emt 0:04:36]} Qc7 {[%emt 0:03:28]} 14. Rfe1 {[%emt 0:03:34]} e6 {[%emt 0:09:16]} 15. Qd2 {[%emt 0:06:02]} a6 {[%emt 0:03:25]} 16. a4 {[%emt 0:04:05]} b4 {[%emt 0:01:45]} 17. Ne4 {[%emt 0:02:02]} c5 {[%emt 0:00:52]} 18. Bh6 {[%emt 0:01:25]} f5 {[%emt 0:11:35]} 19. exf6 {[%emt 0:10:08]} Nxf6 {[%emt 0:00:15]} 20. Bxg7 {[%emt 0:01:36]} Kxg7 {[%emt 0:01:24]} 21. Nxf6 {[%emt 0:02:27]} Rxf6 {[%emt 0:00:07]} 22. Ne5 {[%emt 0:02:49]} Rf5 {[%emt 0:05:08]} 23. Ng4 {[%emt 0:03:48]} c4 {[%emt 0:01:33]} 24. Qd4+ {[%emt 0:01:35]} e5 {[%emt 0:01:37]} 25. Nxe5 {[%emt 0:02:22]} Qc5 {[%emt 0:03:43]} 26. Qxc5 {[%emt 0:07:53]} Nxc5 {[%emt 0:00:06]} 27. Bxc4 {[%emt 0:00:22]} Bb7 {[%emt 0:00:05]} 28. Nd3 {[%emt 0:02:01]} Rb8 {[%emt 0:04:40]} 29. Re7+ {[%emt 0:01:26]} Kh6 {[%emt 0:01:01]} 30. g4 {[%emt 0:02:47]} Nxd3 {[%emt 0:02:48]} 31. gxf5 {[%emt 0:00:13]} Nf4 {[%emt 0:01:22]} 32. f6 {[%emt 0:02:29]} Nxh3+ {[%emt 0:00:30]} 33. Kh2 {[%emt 0:00:57]} Nxf2 {[%emt 0:01:09]} 34. f7 {[%emt 0:00:42]} Ng4+ {[%emt 0:00:30]} 35. Kg3 {[%emt 0:00:14]} 1-0

[Event "22nd ETCC Women 2019"]
[Site "Batumi"]
[Date "2019.10.27"]
[Round "4.4"]
[White "Ratsma, Rosa"]
[Black "Teuschler, Barbara"]
[Result "1-0"]
[ECO "C90"]
[WhiteElo "2283"]
[BlackElo "2136"]
[Annotator "NA"]
[PlyCount "107"]
[EventDate "2019.10.24"]
[EventType "team-tourn"]
[EventCountry "GEO"]
[SourceTitle "playchess.com"]
[Source "ChessBase"]
[SourceQuality "1"]
[WhiteTeam "Netherlands"]
[BlackTeam "Austria"]
[WhiteTeamCountry "NED"]
[BlackTeamCountry "AUT"]
[TimeControl "40/5400+30:1800+30"]

1. e4 {[%emt 0:00:00]} e5 {[%emt 0:00:00]} 2. Nf3 {[%emt 0:00:00]} Nc6 {[%emt 0:00:00]} 3. Bb5 {[%emt 0:00:00]} a6 {[%emt 0:00:00]} 4. Ba4 {[%emt 0:00:00]} Nf6 {[%emt 0:00:00]} 5. O-O {[%emt 0:00:00]} Be7 {[%emt 0:00:00]} 6. Re1 {[%emt 0:00:16]} b5 {[%emt 0:00:21]} 7. Bb3 {[%emt 0:00:06]} d6 {[%emt 0:00:09]} 8. c3 {[%emt 0:00:10]} O-O {[%emt 0:01:00]} 9. d3 {[%emt 0:00:11]} Na5 {[%emt 0:01:05]} 10. Bc2 {[%emt 0:00:07]} c5 {[%emt 0:00:06]} 11. Nbd2 {[%emt 0:00:13]} Nc6 {[%emt 0:02:28]} 12. h3 {[%emt 0:00:24]} Re8 {[%emt 0:00:54]} 13. Nf1 {[%emt 0:00:24]} h6 {[%emt 0:01:50]} 14. d4 {[%emt 0:01:46]} cxd4 {[%emt 0:01:01]} 15. cxd4 {[%emt 0:01:11]} exd4 {[%emt 0:00:08]} 16. Nxd4 {[%emt 0:00:13]} Nxd4 {[%emt 0:00:05]} 17. Qxd4 {[%emt 0:00:07]} Bb7 {[%emt 0:01:37]} 18. Ng3 {[%emt 0:13:27]} d5 {[%emt 0:01:34]} 19. e5 {[%emt 0:02:23]} Ne4 {[%emt 0:01:45]} 20. Nxe4 {[%emt 0:02:08]} dxe4 {[%emt 0:00:01]} 21. Be3 {[%emt 0:03:13]} f5 {[%emt 0:31:26]} 22. Bb3+ {[%emt 0:06:28]} Kh7 {[%emt 0:03:04]} 23. Rac1 {[%emt 0:14:52]} Qxd4 {[%emt 0:08:01]} 24. Bxd4 {[%emt 0:00:09]} Bb4 {[%emt 0:00:37]} 25. Re2 {[%emt 0:04:50]} Rad8 {[%emt 0:08:36]} 26. Bb6 {[%emt 0:03:46]} Rc8 {[%emt 0:10:09]} 27. Rc7 {[%emt 0:08:15]} Rxc7 {[%emt 0:01:37]} 28. Bxc7 {[%emt 0:00:06]} Bc8 {[%emt 0:09:14]} 29. g4 {[%emt 0:04:32]} g6 {[%emt 0:02:34]} 30. Kg2 {[%emt 0:12:16]} Be6 {[%emt 0:01:06]} 31. Bxe6 {[%emt 0:02:15]} Rxe6 {[%emt 0:00:01]} 32. a3 {[%emt 0:03:43]} Bf8 {[%emt 0:04:42]} 33. Rc2 {[%emt 0:03:51]} Kg8 {[%emt 0:02:01]} 34. Kg3 {[%emt 0:00:49]} Kf7 {[%emt 0:01:11]} 35. Kf4 {[%emt 0:01:00]} fxg4 {[%emt 0:01:55]} 36. hxg4 {[%emt 0:00:09]} Be7 {[%emt 0:02:28]} 37. Kxe4 {[%emt 0:00:26]} h5 {[%emt 0:00:09]} 38. f4 {[%emt 0:04:17]} hxg4 {[%emt 0:00:26]} 39. Kd5 {[%emt 0:01:32]} g3 {[%emt 0:00:52]} 40. Bd6 {[%emt 0:00:00]} Bd8 {[%emt 0:00:00]} 41. Rc3 {[%emt 0:11:00]} Bh4 {[%emt 0:02:17]} 42. Rc7+ {[%emt 0:07:04]} Be7 {[%emt 0:00:08]} 43. b4 {[%emt 0:03:38]} g2 {[%emt 0:01:28]} 44. Bc5 {[%emt 0:01:46]} Kf8 {[%emt 0:01:40]} 45. Be3 {[%emt 0:02:15]} Bd8 {[%emt 0:02:32]} 46. Rc2 {[%emt 0:02:29]} Kf7 {[%emt 0:00:03]} 47. Rxg2 {[%emt 0:00:25]} a5 {[%emt 0:00:02]} 48. bxa5 {[%emt 0:02:34]} Bxa5 {[%emt 0:00:01]} 49. Rb2 {[%emt 0:00:21]} Bb6 {[%emt 0:00:40]} 50. Bxb6 {[%emt 0:02:15]} Rxb6 {[%emt 0:00:02]} 51. a4 {[%emt 0:00:19]} b4 {[%emt 0:01:33]} 52. Kc5 {[%emt 0:00:11]} Re6 {[%emt 0:00:42]} 53. Rxb4 {[%emt 0:00:15]} g5 {[%emt 0:00:04]} 54. Kd5 {[%emt 0:00:32]} 1-0